fUST/lending_fUST_20250704
["ID","MTS","AMOUNT","RATE_DAILY","PERIOD"]
[369594106,1751635851849,-712.06,0.00018356,2]
[369594108,1751635851858,-631.77,0.00018356,2]
[369594110,1751635851868,-636.3,0.00018356,2]
[369594112,1751635851877,-1131.96,0.00018356,2]
[369594114,1751635851887,-460.0,0.00018356,2]
[369594116,1751635851897,-460.0,0.00018356,2]
[369594118,1751635851906,-460.0,0.00018356,2]
[369594120,1751635851916,-460.0,0.00018356,2]
[369594122,1751635851924,-558.84,0.00018356,2]
[369594124,1751635851933,-1406.81,0.00018356,2]
[369594126,1751635851943,-583.94,0.00018356,2]
[369594128,1751635851952,-637.77,0.00018356,2]
[369594129,1751635851961,-1397.69397151,0.00018356,2]
[369594157,1751635852228,-284.52178401,0.00018356,2]
[369594160,1751635852380,-358.83468195,0.00016986,2]
[369594161,1751635852395,-101.16531805,0.00016986,2]
[369594163,1751635852404,-460.0,0.0001726,2]
[369594165,1751635852414,-368.75577535,0.00017534,2]
[369596407,1751636329344,1273205.10048118,0.00024491,120]
[369596408,1751636367659,5000.0,0.0001501,2]
[369596409,1751636384834,4555.08015454,0.0001501,2]
[369596415,1751636675456,755.115321,0.00013699,2]
[369596453,1751637032411,-247.35596518,0.00015273,2]
[369596455,1751637032421,-500.0,0.00015373,2]
[369596457,1751637032431,-328.48669089,0.00015373,2]
[369596459,1751637032442,-884.0,0.00015373,2]
[369596461,1751637032453,-27.18637054,0.00015373,2]
[369596464,1751637032474,-272.81362946,0.00015373,2]
[369596465,1751637032483,-810.28637054,0.00015374,2]
[369596466,1751637032495,-24089.71362946,0.00015374,2]
[369596467,1751637032504,-469.12107572,0.00016337,2]
[369596468,1751637032514,-207.4,0.00016428,2]
[369596469,1751637032523,-151.0,0.00016428,2]
[369596470,1751637032533,-151.0,0.00016428,2]
[369596471,1751637032542,-151.0,0.00016428,2]
[369596472,1751637032551,-151.0,0.00016428,2]
[369596473,1751637032561,-151.0,0.00016428,2]
[369596474,1751637032571,-151.0,0.00016428,2]
[369596475,1751637032580,-151.0,0.00016428,2]
[369596476,1751637032590,-151.0,0.00016428,2]
[369596477,1751637032599,-151.0,0.00016428,2]
[369596478,1751637032608,-151.0,0.00016428,2]
[369596479,1751637032617,-151.0,0.00016428,2]
[369596480,1751637032628,-221.05788304,0.00016437,2]
[369596481,1751637032640,-500.0,0.00016437,2]
[369596482,1751637032650,-500.0,0.00016437,2]
[369596483,1751637032660,-500.0,0.00016437,2]
[369596484,1751637032670,-500.0,0.00016437,2]
[369596485,1751637032682,-500.0,0.00016437,2]
[369596486,1751637032692,-500.0,0.00016437,2]
[369596487,1751637032703,-202.47925368,0.00016437,2]
[369596488,1751637032714,-500.0,0.00016437,2]
[369596489,1751637032725,-87.55120703,0.00016437,2]
[369596518,1751637038335,-412.44879297,0.00016437,2]
[369596520,1751637038345,-300.0,0.00016437,2]
[369596522,1751637038354,-460.0,0.00016438,2]
[369596524,1751637038364,-460.0,0.00016438,2]
[369596526,1751637038373,-460.0,0.00016438,2]
[369596528,1751637038383,-460.0,0.00016438,2]
[369596530,1751637038392,-460.0,0.00016438,2]
[369596532,1751637038402,-460.0,0.00016438,2]
[369596534,1751637038412,-460.0,0.00016438,2]
[369596536,1751637038422,-460.0,0.00016438,2]
[369596538,1751637038431,-460.0,0.00016438,2]
[369596540,1751637038441,-461.7889499,0.00016438,2]
[369596542,1751637038451,-460.0,0.00016438,2]
[369596544,1751637038460,-192.89041772,0.00016438,2]
[369596546,1751637038470,-460.0,0.00016438,2]
[369596548,1751637038479,-460.0,0.00016438,2]
[369596550,1751637038489,-460.0,0.00016438,2]
[369596552,1751637038498,-421.57183673,0.00016438,2]
[369596554,1751637038508,-282.67584232,0.00016438,2]
[369596556,1751637038518,-460.0,0.00016438,2]
[369596558,1751637038527,-343.98203792,0.00016438,2]
[369596561,1751637038539,-116.01796208,0.00016438,2]
[369596564,1751637038549,-500.0,0.00016438,2]
[369596566,1751637038558,-500.0,0.00016438,2]
[369596568,1751637038568,-460.0,0.00016438,2]
[369596570,1751637038578,-511.7726452,0.00016438,2]
[369596572,1751637038587,-460.0,0.00016438,2]
[369596574,1751637038598,-460.0,0.00016438,2]
[369596576,1751637038607,-460.0,0.00016438,2]
[369596578,1751637038617,-450.0,0.00016438,2]
[369596580,1751637038627,-525.42,0.00016438,2]
[369596582,1751637038639,-460.0,0.00016438,2]
[369596584,1751637038649,-447.95054484,0.00016438,2]
[369596589,1751637038690,-92.04945516,0.00016438,2]
[369596591,1751637038700,-460.0,0.00016438,2]
[369596594,1751637038712,-434.56670802,0.00016438,2]
[369596596,1751637038721,-461.88178036,0.00016438,2]
[369596598,1751637038730,-460.0,0.00016438,2]
[369596600,1751637038739,-460.0,0.00016438,2]
[369596602,1751637038748,-460.0,0.00016438,2]
[369596604,1751637038757,-335.0,0.00016438,2]
[369596606,1751637038766,-339.99423201,0.00016438,2]
[369596608,1751637038778,-460.0,0.00016438,2]
[369596610,1751637038787,-460.0,0.00016438,2]
[369596612,1751637038796,-460.0,0.00016438,2]
[369596614,1751637038805,-460.0,0.00016438,2]
[369596616,1751637038815,-460.0,0.00016438,2]
[369596618,1751637038824,-155.59271739,0.00016438,2]
[369596620,1751637038834,-460.0,0.00016438,2]
[369596622,1751637038843,-462.52718163,0.00016438,2]
[369596623,1751637038852,-395.17628783,0.00016438,2]
[369596626,1751637038861,-460.0,0.00016438,2]
[369596628,1751637038871,-460.0,0.00016438,2]
[369596629,1751637038880,-544.06228736,0.00016438,2]
[369596631,1751637038889,-461.27899826,0.00016438,2]
[369596634,1751637038899,-460.0,0.00016438,2]
[369596636,1751637038908,-463.6476598,0.00016438,2]
[369596638,1751637038917,-460.0,0.00016438,2]
[369596639,1751637038926,-460.0,0.00016438,2]
[369596642,1751637038936,-460.0,0.00016438,2]
[369596643,1751637038945,-491.75,0.00016438,2]
[369596646,1751637038955,-460.0,0.00016438,2]
[369596647,1751637038964,-460.0,0.00016438,2]
[369596649,1751637038973,-460.0,0.00016438,2]
[369596651,1751637038983,-460.0,0.00016438,2]
[369596653,1751637038992,-460.0,0.00016438,2]
[369596655,1751637039001,-460.0,0.00016438,2]
[369596658,1751637039010,-460.0,0.00016438,2]
[369596660,1751637039020,-460.0,0.00016438,2]
[369596662,1751637039029,-460.0,0.00016438,2]
[369596664,1751637039039,-460.0,0.00016438,2]
[369596666,1751637039048,-460.0,0.00016438,2]
[369596668,1751637039057,-460.0,0.00016438,2]
[369596670,1751637039066,-460.0,0.00016438,2]
[369596672,1751637039075,-460.0,0.00016438,2]
[369596674,1751637039087,-460.0,0.00016438,2]
[369596676,1751637039095,-460.0,0.00016438,2]
[369596678,1751637039104,-460.0,0.00016438,2]
[369596680,1751637039114,-430.0,0.00016438,2]
[369596682,1751637039123,-460.0,0.00016438,2]
[369596684,1751637039133,-460.0,0.00016438,2]
[369596686,1751637039142,-460.0,0.00016438,2]
[369596688,1751637039151,-460.0,0.00016438,2]
[369596690,1751637039161,-460.0,0.00016438,2]
[369596692,1751637039170,-460.0,0.00016438,2]
[369596694,1751637039179,-460.0,0.00016438,2]
[369596696,1751637039188,-460.0,0.00016438,2]
[369596698,1751637039197,-460.0,0.00016438,2]
[369596700,1751637039207,-562.47,0.00016438,2]
[369596701,1751637039217,-460.0,0.00016438,2]
[369596704,1751637039227,-284.31746798,0.00016438,2]
[369596705,1751637039236,-460.0,0.00016438,2]
[369596708,1751637039246,-485.77594695,0.00016438,2]
[369596710,1751637039255,-460.0,0.00016438,2]
[369596712,1751637039264,-460.0,0.00016438,2]
[369596714,1751637039274,-460.0,0.00016438,2]
[369596716,1751637039283,-460.0,0.00016438,2]
[369596718,1751637039292,-366.61941739,0.00016438,2]
[369596720,1751637039302,-460.0,0.00016438,2]
[369596722,1751637039311,-460.0,0.00016438,2]
[369596724,1751637039321,-461.3191053,0.00016438,2]
[369596726,1751637039332,-460.0,0.00016438,2]
[369596728,1751637039341,-407.67592685,0.00016438,2]
[369596730,1751637039350,-518.96,0.00016438,2]
[369596732,1751637039359,-460.0,0.00016438,2]
[369596734,1751637039368,-460.0,0.00016438,2]
[369596736,1751637039378,-460.0,0.00016438,2]
[369596738,1751637039387,-460.0,0.00016438,2]
[369596740,1751637039397,-460.0,0.00016438,2]
[369596742,1751637039406,-1053.4,0.00016438,2]
[369596744,1751637039416,-460.0,0.00016438,2]
[369596746,1751637039426,-460.0,0.00016438,2]
[369596748,1751637039435,-582.05,0.00016438,2]
[369596750,1751637039444,-460.0,0.00016438,2]
[369596752,1751637039454,-493.87,0.00016438,2]
[369596754,1751637039463,-460.0,0.00016438,2]
[369596756,1751637039472,-460.0,0.00016438,2]
[369596758,1751637039481,-460.0,0.00016438,2]
[369596760,1751637039491,-475.4235852,0.00016438,2]
[369596762,1751637039500,-500.0,0.00016438,2]
[369596764,1751637039510,-2730.21,0.00016438,2]
[369596766,1751637039520,-460.0,0.00016438,2]
[369596768,1751637039529,-460.0,0.00016438,2]
[369596770,1751637039539,-550.0,0.00016438,2]
[369596772,1751637039549,-2774.82,0.00016438,2]
[369596774,1751637039558,-460.0,0.00016438,2]
[369596776,1751637039567,-310.0,0.00016438,2]
[369596778,1751637039578,-1062.17,0.00016438,2]
[369596780,1751637039587,-460.0,0.00016438,2]
[369596782,1751637039597,-460.0,0.00016438,2]
[369596784,1751637039606,-359.31879438,0.00016438,2]
[369596787,1751637039616,-1781.24,0.00016438,2]
[369596788,1751637039625,-718.0,0.00016438,2]
[369596790,1751637039635,-460.0,0.00016438,2]
[369596793,1751637039647,-747.93,0.00016438,2]
[369596795,1751637039656,-973.72,0.00016438,2]
[369596797,1751637039666,-460.0,0.00016438,2]
[369596798,1751637039675,-559.07,0.00016438,2]
[369596801,1751637039685,-460.0,0.00016438,2]
[369596803,1751637039695,-460.0,0.00016438,2]
[369596805,1751637039704,-542.42,0.00016438,2]
[369596807,1751637039714,-460.0,0.00016438,2]
[369596809,1751637039723,-460.0,0.00016438,2]
[369596811,1751637039733,-460.0,0.00016438,2]
[369596813,1751637039743,-460.0,0.00016438,2]
[369596815,1751637039752,-460.0,0.00016438,2]
[369596817,1751637039761,-460.0,0.00016438,2]
[369596819,1751637039771,-1709.61,0.00016438,2]
[369596836,1751637039912,-460.0,0.00016438,2]
[369596838,1751637039923,-460.0,0.00016438,2]
[369596840,1751637039933,-460.0,0.00016438,2]
[369596842,1751637039943,-460.0,0.00016438,2]
[369596844,1751637039952,-514.81,0.00016438,2]
[369596846,1751637039961,-460.0,0.00016438,2]
[369596848,1751637039971,-1829.85,0.00016438,2]
[369596850,1751637039980,-460.0,0.00016438,2]
[369596852,1751637039989,-460.0,0.00016438,2]
[369596854,1751637039999,-460.0,0.00016438,2]
[369596856,1751637040009,-460.0,0.00016438,2]
[369596858,1751637040018,-460.0,0.00016438,2]
[369596860,1751637040028,-813.12,0.00016438,2]
[369596862,1751637040038,-460.0,0.00016438,2]
[369596864,1751637040047,-2343.11,0.00016438,2]
[369596866,1751637040056,-460.0,0.00016438,2]
[369596868,1751637040066,-500.0,0.00016438,2]
[369596870,1751637040075,-151.0,0.00016438,2]
[369596872,1751637040087,-460.0,0.00016438,2]
[369596874,1751637040096,-151.0,0.00016438,2]
[369596876,1751637040105,-500.0,0.00016438,2]
[369596878,1751637040115,-460.0,0.00016438,2]
[369596880,1751637040124,-460.0,0.00016438,2]
[369596882,1751637040134,-1164.93,0.00016438,2]
[369596884,1751637040143,-460.0,0.00016438,2]
[369596887,1751637040153,-460.0,0.00016438,2]
[369596889,1751637040162,-500.5,0.00016438,2]
[369596891,1751637040172,-460.0,0.00016438,2]
[369596893,1751637040181,-460.0,0.00016438,2]
[369596895,1751637040190,-1469.03648105,0.00016438,2]
[369596898,1751637040205,-209.63351895,0.00016438,2]
[369596900,1751637040214,-460.0,0.00016438,2]
[369596902,1751637040224,-808.6,0.00016438,2]
[369596904,1751637040233,-460.0,0.00016438,2]
[369596906,1751637040243,-460.0,0.00016438,2]
[369596908,1751637040252,-460.0,0.00016438,2]
[369596910,1751637040262,-460.0,0.00016438,2]
[369596912,1751637040272,-460.0,0.00016438,2]
[369596914,1751637040281,-460.0,0.00016438,2]
[369596916,1751637040291,-460.0,0.00016438,2]
[369596918,1751637040300,-460.0,0.00016438,2]
[369596920,1751637040309,-460.0,0.00016438,2]
[369596922,1751637040319,-500.0,0.00016438,2]
[369596924,1751637040329,-500.0,0.00016438,2]
[369596926,1751637040339,-500.0,0.00016438,2]
[369596928,1751637040348,-500.0,0.00016438,2]
[369596930,1751637040358,-1097.61,0.00016438,2]
[369596932,1751637040367,-807.09,0.00016438,2]
[369596934,1751637040377,-460.0,0.00016438,2]
[369596936,1751637040386,-460.0,0.00016438,2]
[369596938,1751637040395,-460.0,0.00016438,2]
[369596940,1751637040405,-460.0,0.00016438,2]
[369596942,1751637040416,-290.59529039,0.00016438,2]
[369596944,1751637040428,-169.40470961,0.00016438,2]
[369596946,1751637040438,-460.0,0.00016438,2]
[369596948,1751637040447,-160.48617196,0.00016438,2]
[369596950,1751637040457,-460.0,0.00016438,2]
[369596952,1751637040467,-467.53,0.00016438,2]
[369596954,1751637040477,-460.0,0.00016438,2]
[369596956,1751637040488,-460.0,0.00016438,2]
[369596958,1751637040498,-460.0,0.00016438,2]
[369596960,1751637040508,-460.0,0.00016438,2]
[369596962,1751637040517,-2633.31,0.00016438,2]
[369596964,1751637040527,-460.0,0.00016438,2]
[369596966,1751637040537,-460.0,0.00016438,2]
[369596968,1751637040546,-460.0,0.00016438,2]
[369596970,1751637040556,-460.0,0.00016438,2]
[369596972,1751637040565,-460.0,0.00016438,2]
[369596974,1751637040575,-500.0,0.00016438,2]
[369596977,1751637040587,-500.0,0.00016438,2]
[369596979,1751637040596,-500.0,0.00016438,2]
[369596981,1751637040607,-1545.21,0.00016438,2]
[369596983,1751637040616,-460.0,0.00016438,2]
[369596984,1751637040628,-858.71,0.00016438,2]
[369596986,1751637040644,-1254.64,0.00016438,2]
[369596988,1751637040653,-316.06441967,0.00016438,2]
[369596992,1751637040663,-460.0,0.00016438,2]
[369596995,1751637040673,-461.75969543,0.00016438,2]
[369596998,1751637040682,-460.0,0.00016438,2]
[369597000,1751637040692,-460.0,0.00016438,2]
[369597004,1751637040702,-460.0,0.00016438,2]
[369597007,1751637040714,-461.91239772,0.00016438,2]
[369597010,1751637040724,-460.0,0.00016438,2]
[369597013,1751637040733,-515.64,0.00016438,2]
[369597016,1751637040743,-460.0,0.00016438,2]
[369597019,1751637040753,-558.0,0.00016438,2]
[369597021,1751637040762,-290.9454532,0.00016438,2]
[369597023,1751637040774,-169.0545468,0.00016438,2]
[369597025,1751637040783,-460.0,0.00016438,2]
[369597027,1751637040792,-460.0,0.00016438,2]
[369597029,1751637040801,-1012.99,0.00016438,2]
[369597031,1751637040811,-460.0,0.00016438,2]
[369597033,1751637040820,-500.0,0.00016465,2]
[369597035,1751637040829,-229.43704833,0.00016465,2]
[369597037,1751637040841,-270.56295167,0.00016465,2]
[369597039,1751637040850,-453.0,0.00016493,2]
[369597041,1751637040860,-900.0,0.000165,2]
[369597043,1751637040869,-184.0,0.00016512,2]
[369597045,1751637040878,-160.0,0.00016562,2]
[369597047,1751637040886,-215.11129906,0.00016562,2]
[369597049,1751637040896,-160.0,0.00016562,2]
[369597051,1751637040905,-230.40116161,0.00016562,2]
[369597053,1751637040914,-160.0,0.00016562,2]
[369597055,1751637040924,-26.88885952,0.00016562,2]
[369597085,1751637041194,-1143.29037104,0.00016338,2]
[369597087,1751637041205,-821.02329875,0.00016562,2]
[369597089,1751637041215,-213.97741257,0.00016562,2]
[369597092,1751637041229,-2469.23607251,0.00016562,2]
[369597095,1751637041246,-9555.08015454,0.00016562,2]
[369597097,1751637041261,-553.71715274,0.00016562,2]
[369597100,1751637041274,-837.48520791,0.00016562,2]
[369597102,1751637041287,-184.0,0.00016563,2]
[369597104,1751637041299,-184.0,0.00016567,2]
[369597107,1751637041311,-184.0,0.000166,2]
[369597109,1751637041324,-184.0,0.00016623,2]
[369597112,1751637041338,-1999.45638862,0.00016638,2]
[369597114,1751637041352,-184.0,0.00016668,2]
[369597116,1751637041363,-184.0,0.00016677,2]
[369597119,1751637041375,-184.0,0.00016695,2]
[369597121,1751637041387,-184.0,0.00016703,2]
[369597123,1751637041398,-151.0,0.00016712,2]
[369597126,1751637041411,-460.0,0.00016712,2]
[369597128,1751637041424,-151.0,0.00016712,2]
[369597130,1751637041435,-151.0,0.00016712,2]
[369597132,1751637041448,-151.0,0.00016712,2]
[369597134,1751637041459,-151.0,0.00016712,2]
[369597137,1751637041469,-375.28877468,0.00016712,2]
[369597139,1751637041481,-460.0,0.00016712,2]
[369597141,1751637041492,-440.0,0.00016712,2]
[369597143,1751637041504,-500.0,0.00016712,2]
[369597146,1751637041516,-460.0,0.00016712,2]
[369597148,1751637041527,-460.0,0.00016712,2]
[369597150,1751637041539,-509.75282343,0.00016712,2]
[369597153,1751637041552,-460.0,0.00016712,2]
[369597155,1751637041564,-460.0,0.00016712,2]
[369597157,1751637041577,-460.0,0.00016712,2]
[369597160,1751637041591,-460.0,0.00016712,2]
[369597162,1751637041604,-312.47164709,0.00016712,2]
[369597164,1751637041615,-460.0,0.00016712,2]
[369597166,1751637041625,-460.0,0.00016712,2]
[369597169,1751637041636,-460.0,0.00016712,2]
[369597171,1751637041649,-460.0,0.00016712,2]
[369597173,1751637041660,-460.0,0.00016712,2]
[369597175,1751637041673,-460.0,0.00016712,2]
[369597178,1751637041687,-460.0,0.00016712,2]
[369597180,1751637041700,-562.47,0.00016712,2]
[369597182,1751637041711,-460.0,0.00016712,2]
[369597184,1751637041722,-460.0,0.00016712,2]
[369597186,1751637041733,-518.96,0.00016712,2]
[369597189,1751637041745,-460.0,0.00016712,2]
[369597191,1751637041756,-1053.4,0.00016712,2]
[369597193,1751637041768,-460.0,0.00016712,2]
[369597195,1751637041779,-582.05,0.00016712,2]
[369597198,1751637041789,-493.87,0.00016712,2]
[369597200,1751637041799,-2730.21,0.00016712,2]
[369597202,1751637041809,-460.0,0.00016712,2]
[369597204,1751637041821,-460.0,0.00016712,2]
[369597206,1751637041832,-2774.82,0.00016712,2]
[369597208,1751637041844,-460.0,0.00016712,2]
[369597211,1751637041855,-1062.17,0.00016712,2]
[369597213,1751637041865,-460.0,0.00016712,2]
[369597215,1751637041877,-1781.24,0.00016712,2]
[369597217,1751637041887,-718.0,0.00016712,2]
[369597219,1751637041898,-747.93,0.00016712,2]
[369597221,1751637041910,-973.72,0.00016712,2]
[369597224,1751637041921,-559.07,0.00016712,2]
[369597225,1751637041931,-460.0,0.00016712,2]
[369597226,1751637041942,-542.42,0.00016712,2]
[369597227,1751637041953,-460.0,0.00016712,2]
[369597228,1751637041964,-460.0,0.00016712,2]
[369597229,1751637041975,-460.0,0.00016712,2]
[369597230,1751637041987,-1709.61,0.00016712,2]
[369597231,1751637041998,-460.0,0.00016712,2]
[369597232,1751637042009,-460.0,0.00016712,2]
[369597233,1751637042020,-1829.85,0.00016712,2]
[369597234,1751637042030,-460.0,0.00016712,2]
[369597235,1751637042041,-460.0,0.00016712,2]
[369597236,1751637042052,-813.12,0.00016712,2]
[369597237,1751637042063,-2343.11,0.00016712,2]
[369597238,1751637042074,-460.0,0.00016712,2]
[369597239,1751637042085,-1164.93,0.00016712,2]
[369597240,1751637042096,-460.0,0.00016712,2]
[369597241,1751637042107,-460.0,0.00016712,2]
[369597243,1751637042118,-500.5,0.00016712,2]
[369597244,1751637042129,-460.0,0.00016712,2]
[369597246,1751637042140,-1678.67,0.00016712,2]
[369597248,1751637042151,-808.6,0.00016712,2]
[369597250,1751637042161,-460.0,0.00016712,2]
[369597252,1751637042172,-368.651178,0.00016712,2]
[369597254,1751637042183,-460.0,0.00016712,2]
[369597257,1751637042193,-460.0,0.00016712,2]
[369597259,1751637042204,-485.80134796,0.00016712,2]
[369597261,1751637042215,-460.0,0.00016712,2]
[369597263,1751637042226,-1097.61,0.00016712,2]
[369597265,1751637042236,-807.09,0.00016712,2]
[369597267,1751637042247,-460.0,0.00016712,2]
[369597269,1751637042258,-460.0,0.00016712,2]
[369597272,1751637042269,-460.0,0.00016712,2]
[369597274,1751637042280,-460.0,0.00016712,2]
[369597276,1751637042291,-467.53,0.00016712,2]
[369597278,1751637042302,-460.0,0.00016712,2]
[369597280,1751637042314,-460.0,0.00016712,2]
[369597282,1751637042324,-2633.31,0.00016712,2]
[369597285,1751637042337,-460.0,0.00016712,2]
[369597287,1751637042348,-460.0,0.00016712,2]
[369597289,1751637042359,-350.30385069,0.00016712,2]
[369597291,1751637042370,-1545.21,0.00016712,2]
[369597293,1751637042381,-460.0,0.00016712,2]
[369597295,1751637042392,-858.71,0.00016712,2]
[369597297,1751637042403,-1254.64,0.00016712,2]
[369597300,1751637042415,-460.0,0.00016712,2]
[369597302,1751637042426,-460.0,0.00016712,2]
[369597304,1751637042437,-211.50168896,0.00016712,2]
[369597306,1751637042448,-460.0,0.00016712,2]
[369597309,1751637042464,-515.64,0.00016712,2]
[369597311,1751637042475,-460.0,0.00016712,2]
[369597313,1751637042485,-460.0,0.00016712,2]
[369597315,1751637042494,-460.0,0.00016712,2]
[369597317,1751637042503,-1012.99,0.00016712,2]
[369597319,1751637042513,-460.0,0.00016712,2]
[369597321,1751637042522,-184.0,0.00016757,2]
[369597323,1751637042532,-420.0,0.00016818,2]
[369597325,1751637042541,-184.0,0.00016857,2]
[369597327,1751637042550,-8008.47937955,0.000169,2]
[369597329,1751637042560,-184.0,0.00016924,2]
[369597331,1751637042570,-460.0,0.00016986,2]
[369597333,1751637042580,-151.0,0.00016986,2]
[369597355,1751637042775,-460.0,0.00016986,2]
[369597358,1751637042793,-460.0,0.00016986,2]
[369597360,1751637042803,-153.92140957,0.00016986,2]
[369597362,1751637042812,-460.0,0.00016986,2]
[369597363,1751637042822,-460.0,0.00016986,2]
[369597365,1751637042832,-460.0,0.00016986,2]
[369597367,1751637042841,-460.0,0.00016986,2]
[369597370,1751637042850,-460.0,0.00016986,2]
[369597371,1751637042860,-562.47,0.00016986,2]
[369597373,1751637042871,-460.0,0.00016986,2]
[369597375,1751637042880,-460.0,0.00016986,2]
[369597378,1751637042890,-518.96,0.00016986,2]
[369597379,1751637042899,-460.0,0.00016986,2]
[369597382,1751637042909,-1053.4,0.00016986,2]
[369597383,1751637042918,-460.0,0.00016986,2]
[369597385,1751637042927,-582.05,0.00016986,2]
[369597387,1751637042936,-493.87,0.00016986,2]
[369597389,1751637042946,-2730.21,0.00016986,2]
[369597392,1751637042955,-460.0,0.00016986,2]
[369597394,1751637042965,-460.0,0.00016986,2]
[369597395,1751637042974,-2774.82,0.00016986,2]
[369597398,1751637042984,-460.0,0.00016986,2]
[369597400,1751637042993,-1062.17,0.00016986,2]
[369597402,1751637043003,-460.0,0.00016986,2]
[369597404,1751637043012,-1781.24,0.00016986,2]
[369597407,1751637043022,-718.0,0.00016986,2]
[369597408,1751637043031,-747.93,0.00016986,2]
[369597411,1751637043040,-973.72,0.00016986,2]
[369597413,1751637043049,-559.07,0.00016986,2]
[369597415,1751637043059,-460.0,0.00016986,2]
[369597417,1751637043068,-542.42,0.00016986,2]
[369597420,1751637043077,-460.0,0.00016986,2]
[369597423,1751637043087,-460.0,0.00016986,2]
[369597425,1751637043096,-460.0,0.00016986,2]
[369597427,1751637043106,-1709.61,0.00016986,2]
[369597429,1751637043116,-460.0,0.00016986,2]
[369597431,1751637043125,-460.0,0.00016986,2]
[369597433,1751637043135,-1829.85,0.00016986,2]
[369597435,1751637043145,-460.0,0.00016986,2]
[369597437,1751637043154,-460.0,0.00016986,2]
[369597439,1751637043163,-813.12,0.00016986,2]
[369597441,1751637043172,-2343.11,0.00016986,2]
[369597443,1751637043181,-460.0,0.00016986,2]
[369597445,1751637043190,-1164.93,0.00016986,2]
[369597447,1751637043199,-460.0,0.00016986,2]
[369597449,1751637043208,-460.0,0.00016986,2]
[369597451,1751637043217,-500.5,0.00016986,2]
[369597453,1751637043227,-460.0,0.00016986,2]
[369597455,1751637043236,-1678.67,0.00016986,2]
[369597457,1751637043245,-808.6,0.00016986,2]
[369597459,1751637043256,-460.0,0.00016986,2]
[369597461,1751637043265,-460.0,0.00016986,2]
[369597463,1751637043275,-460.0,0.00016986,2]
[369597465,1751637043283,-596.5,0.00016986,2]
[369597467,1751637043292,-1097.61,0.00016986,2]
[369597469,1751637043302,-807.09,0.00016986,2]
[369597471,1751637043311,-460.0,0.00016986,2]
[369597473,1751637043320,-460.0,0.00016986,2]
[369597475,1751637043330,-460.0,0.00016986,2]
[369597477,1751637043339,-460.0,0.00016986,2]
[369597479,1751637043349,-467.53,0.00016986,2]
[369597481,1751637043358,-460.0,0.00016986,2]
[369597482,1751637043368,-460.0,0.00016986,2]
[369597483,1751637043377,-2633.31,0.00016986,2]
[369597484,1751637043387,-460.0,0.00016986,2]
[369597485,1751637043396,-460.0,0.00016986,2]
[369597486,1751637043405,-1545.21,0.00016986,2]
[369597487,1751637043414,-460.0,0.00016986,2]
[369597488,1751637043423,-858.71,0.00016986,2]
[369597489,1751637043433,-1254.64,0.00016986,2]
[369597490,1751637043443,-460.0,0.00016986,2]
[369597491,1751637043452,-460.0,0.00016986,2]